bitfinex-derivatives/quotes_SOLF0:USTF0_20241029
["timestamp","ask_amount","ask_price","bid_price","bid_amount"]
[1730230590675,21.47063469,179.26,179.14,5.54]
[1730230590876,2.7906,179.19,179.14,5.54]
[1730230591077,21.47063469,179.26,179.14,8.3312]
[1730230591782,21.47063469,179.26,179.14,5.54]
[1730230591977,2.7905,179.19,179.15,2.7909]
[1730230592685,2.7905,179.19,179.16,2.7909]
[1730230594179,21.47063469,179.26,179.16,2.7909]
[1730230594385,2.7904,179.2,179.16,2.7909]
[1730230594981,10.27467062,179.25,179.17,2.7906]
[1730230595188,2.5923,179.27,179.15,21.47063469]
[1730230595679,21.47063469,179.26,179.16,5.52]
[1730230595887,10.27467062,179.25,179.16,5.52]
[1730230596182,2.7905,179.19,179.16,5.52]
[1730230597089,10.27467062,179.25,179.17,21.47063469]
[1730230597290,2.5795,179.34,179.21,21.47063469]
[1730230597591,2.5795,179.34,179.23,2.7898]
[1730230597779,21.47063469,179.33,179.22,5.84]
[1730230597978,2.7895,179.25,179.22,5.84]
[1730230598885,10.27467062,179.32,179.22,5.84]
[1730230599093,2.5795,179.34,179.22,5.84]
[1730230599384,2.5795,179.34,179.24,21.47063469]
[1730230599782,2.789,179.29,179.25,2.7895]
[1730230599980,2.5795,179.34,179.24,21.47063469]
[1730230600181,1.3307,179.34,179.24,21.47063469]
[1730230600496,10.27467062,179.36,179.24,21.47063469]
[1730230600785,21.47063469,179.34,179.23,2.6012]
[1730230600986,10.27467062,179.33,179.24,5.84]
[1730230601486,10.27467062,179.36,179.24,8.6295]
[1730230601689,21.47063469,179.34,179.24,5.84]
[1730230601896,10.27467062,179.33,179.24,27.31063469]
[1730230602388,10.27467062,179.35,179.24,5.84]
[1730230603185,21.47063469,179.33,179.21,21.47063469]
[1730230603391,21.47063469,179.27,179.17,1.2625]
[1730230603591,2.7896,179.24,179.17,1.2625]
[1730230603889,21.47063469,179.27,179.17,1.2625]
[1730230604089,2.7902,179.21,179.17,4.0532]
[1730230604490,1.2363,179.3,179.18,21.47063469]
[1730230604882,2.7893,179.27,179.2,2.7901]
[1730230605090,1.2363,179.3,179.2,2.7901]
[1730230605587,2.7898,179.24,179.2,2.7901]
[1730230606595,2.7894,179.26,179.22,2.7898]
[1730230606785,16.09878864,179.34,179.22,2.7898]
[1730230607182,2.7894,179.26,179.22,2.7898]
[1730230607392,10.25878864,179.34,179.25,2.7894]
[1730230607591,2.7891,179.28,179.25,2.7894]
[1730230607786,1.2308,179.35,179.23,21.47063469]
[1730230607986,1.2308,179.35,179.24,2.7895]
[1730230608181,2.7892,179.28,179.24,2.7895]
[1730230608388,1.2308,179.35,179.24,2.7895]
[1730230608588,2.7884,179.32,179.24,2.7895]
[1730230608789,1.2308,179.35,179.24,2.7895]
[1730230609581,22.70143469,179.35,179.22,2.7899]
[1730230609783,21.47063469,179.29,179.2,5.82]
[1730230609994,11.61148864,179.28,179.2,5.82]
[1730230610193,11.59796617,179.28,179.2,5.82]
[1730230610596,2.7898,179.24,179.2,5.82]
[1730230610791,2.7898,179.24,179.2,8.6102]
[1730230611089,2.7898,179.24,179.2,5.82]
[1730230611497,28.52143469,179.35,179.21,21.47063469]
[1730230611797,10.24625313,179.34,179.21,21.47063469]
[1730230612296,10.24625313,179.34,179.24,2.7895]
[1730230612887,2.7886,179.31,179.21,21.47063469]
[1730230613085,10.24625313,179.34,179.25,2.7894]
[1730230613291,10.24625313,179.34,179.25,5.82]
[1730230613591,2.789,179.29,179.26,2.7893]
[1730230613789,10.24625313,179.34,179.25,5.82]
[1730230614290,2.7886,179.31,179.28,2.789]
[1730230614486,2.7886,179.31,179.25,5.82]
[1730230614487,2.5444,179.35,179.25,5.82]
[1730230614888,2.7888,179.3,179.26,2.7893]
[1730230615495,2.7889,179.29,179.26,2.7893]
[1730230615892,21.47063469,179.34,179.24,5.82]
[1730230616092,2.7895,179.26,179.24,5.82]
[1730230616290,21.47063469,179.32,179.24,5.82]
[1730230616503,10.23992436,179.31,179.24,5.82]
[1730230616698,2.7891,179.28,179.24,5.82]
[1730230617101,2.7891,179.28,179.25,2.7895]
[1730230617494,2.7891,179.28,179.24,5.82]
[1730230617495,2.7892,179.27,179.24,5.82]
[1730230617991,2.7892,179.27,179.24,8.6095]
[1730230618399,2.789,179.28,179.24,5.82]
[1730230618602,21.47063469,179.34,179.25,2.7894]
[1730230618802,21.47063469,179.34,179.18,23.99593469]
[1730230619003,2.7895,179.25,179.18,23.99593469]
[1730230619302,21.47063469,179.29,179.19,8.6103]
[1730230619504,21.47063469,179.29,179.19,5.82]
[1730230619800,1.2524,179.28,179.19,5.82]
[1730230620001,1.2524,179.28,179.19,8.6104]
[1730230620002,2.7901,179.22,179.19,8.6104]
[1730230620195,1.2524,179.28,179.19,5.82]
[1730230620698,21.47063469,179.24,179.1,21.47063469]
[1730230621000,2.7903,179.21,179.15,2.791]
[1730230621196,2.5355,179.26,179.13,21.47063469]
[1730230621800,2.79,179.22,179.13,21.47063469]
[1730230622094,2.5355,179.26,179.16,21.47063469]
[1730230622296,2.5355,179.26,179.17,5.82]
[1730230622997,2.5355,179.26,179.19,2.7903]
[1730230623204,24.00613469,179.26,179.17,5.82]
[1730230623404,2.7906,179.19,179.17,5.82]
[1730230623713,24.00613469,179.26,179.17,5.82]
[1730230623905,2.7907,179.18,179.14,2.7911]
[1730230624208,5.82,179.25,179.13,5.82]
[1730230624596,5.82,179.25,179.15,2.7909]
[1730230624802,5.82,179.25,179.13,5.82]
[1730230624999,2.7901,179.22,179.13,5.82]
[1730230625207,2.5355,179.26,179.16,21.47063469]
[1730230625603,2.7898,179.23,179.19,2.7903]
[1730230625803,2.7898,179.23,179.18,5.84]
[1730230626204,2.7898,179.23,179.2,2.7902]
[1730230626700,2.7904,179.19,179.18,5.84]
[1730230627003,21.47063469,179.24,179.14,5.78]
[1730230627207,21.47063469,179.21,179.09,1.3273]
[1730230627396,21.47063469,179.18,179.07,5.78]
[1730230627598,2.6165,179.17,179.09,2.792]
[1730230627797,2.6165,179.17,179.07,27.25063469]
[1730230628410,2.7912,179.14,179.1,2.7918]
[1730230629104,2.6165,179.17,179.1,2.7918]
[1730230629304,2.7914,179.13,179.1,2.7918]
[1730230629506,2.6165,179.17,179.07,5.78]
[1730230629912,2.6165,179.17,179.04,21.47063469]
[1730230630108,2.6165,179.17,179.1,2.7918]
[1730230630314,2.6165,179.17,179.06,21.47063469]
[1730230630612,1.3524,179.2,179.09,21.47063469]
[1730230630907,2.7906,179.18,179.11,21.47063469]
[1730230631107,2.5825,179.24,179.11,21.47063469]
[1730230631813,2.7909,179.17,179.13,2.7913]
[1730230632001,2.5825,179.24,179.11,21.47063469]
[1730230632404,2.5825,179.24,179.14,21.47063469]
[1730230632610,2.5825,179.24,179.17,21.47063469]
[1730230632809,2.6235,179.28,179.17,21.47063469]
[1730230633409,2.6235,179.28,179.19,2.7904]
[1730230633410,2.7899,179.23,179.19,2.7904]
[1730230633609,2.7899,179.23,179.19,8.5704]
[1730230633910,2.7899,179.23,179.19,5.78]
[1730230634110,2.7899,179.23,179.2,2.7902]
[1730230635413,2.6235,179.28,179.19,5.78]
[1730230635616,2.7903,179.2,179.17,8.5706]
[1730230635818,21.47063469,179.25,179.17,5.78]
[1730230636022,2.791,179.16,179.12,2.7914]
[1730230636214,21.47063469,179.22,179.12,5.78]
[1730230636816,2.7908,179.17,179.13,2.7912]
[1730230637318,21.47063469,179.25,179.12,5.78]
[1730230638110,2.7907,179.18,179.14,2.7912]
[1730230638317,21.47063469,179.25,179.14,2.7912]
[1730230638511,21.47063469,179.25,179.12,5.78]
[1730230639221,21.47063469,179.25,179.15,2.7909]
[1730230639718,10.26549637,179.24,179.15,2.7909]
[1730230639919,10.26549637,179.24,179.12,5.78]
[1730230640520,10.26549637,179.24,179.17,2.7907]
[1730230641017,10.26549637,179.24,179.12,5.78]
[1730230641221,10.26549637,179.24,179.13,5.78]
[1730230641523,2.7911,179.15,179.13,5.78]
[1730230642120,2.7909,179.16,179.13,5.78]
[1730230642511,10.26821702,179.21,179.14,2.7912]
[1730230642717,2.7909,179.17,179.14,2.7912]
[1730230644623,10.26821702,179.21,179.14,2.7912]
[1730230644819,2.7909,179.16,179.13,8.5713]
[1730230645019,21.47063469,179.19,179.1,5.78]
[1730230645225,2.7915,179.13,179.1,5.78]
[1730230645521,1.2376,179.18,179.1,5.78]
[1730230645925,1.2376,179.18,179.05,22.74863469]
[1730230646119,21.47063469,179.14,179.01,2.5901]
[1730230646325,2.7926,179.06,179.01,2.5901]
[1730230646625,21.47063469,179.11,179.02,5.78]
[1730230646926,2.7922,179.08,179.03,2.7929]
[1730230647115,3.7254,179.1,179.0,5.78]
[1730230647616,1.2376,179.1,179.0,27.25063469]
[1730230648018,2.792,179.09,179.04,2.7928]
[1730230648515,2.792,179.09,179.0,27.25063469]
[1730230648916,1.2376,179.1,179.0,5.78]
[1730230649113,2.7922,179.08,179.03,2.7929]
[1730230649428,2.7922,179.08,179.0,5.78]
[1730230649429,1.2376,179.1,179.0,5.78]
[1730230649933,2.792,179.09,179.04,2.7927]
[1730230650315,8.3583,179.15,179.02,5.78]
[1730230650316,21.47063469,179.13,179.02,5.78]
[1730230650624,2.7919,179.1,179.05,2.7925]
[1730230652822,1.3013,179.14,179.05,2.7925]
[1730230653219,21.47063469,179.11,179.03,2.7928]
[1730230653421,2.75442508,179.1,179.0,5.78]
[1730230654129,2.7923,179.07,179.0,5.78]
[1730230654624,2.7919,179.1,179.0,5.78]
[1730230654823,27.25063469,179.13,179.0,5.78]
[1730230655026,27.25063469,179.13,179.04,2.7926]
[1730230655330,2.7919,179.1,179.0,27.25063469]
[1730230655531,1.3013,179.14,179.0,27.25063469]
[1730230655722,1.3013,179.14,179.03,21.47063469]
[1730230655931,4.0926,179.14,179.04,1.3542]
[1730230656232,1.3013,179.14,179.09,2.7919]
[1730230656427,2.7915,179.13,179.09,2.7919]
[1730230656735,1.3013,179.14,179.05,5.78]
[1730230657235,2.7914,179.13,179.09,2.7919]
[1730230657436,1.3013,179.14,179.05,5.78]
[1730230657624,2.5783,179.15,179.05,5.78]
[1730230658234,261.62048016,179.25,179.09,21.47063469]
[1730230658427,2.5561,179.22,179.1,5.56]
[1730230659038,2.7903,179.2,179.17,2.7907]
[1730230659238,2.5561,179.22,179.1,5.56]
[1730230659743,21.47063469,179.21,179.1,5.56]
[1730230659929,2.7908,179.17,179.1,5.56]
[1730230660331,21.47063469,179.21,179.13,2.7913]
[1730230660535,24.21055201,179.21,179.06,21.47063469]
[1730230660736,24.21055201,179.21,179.07,5.56]
[1730230660939,2.7909,179.17,179.12,2.7914]
[1730230661834,2.7909,179.17,179.07,5.56]
[1730230662241,24.21055201,179.21,179.12,2.7914]
[1730230662242,2.7909,179.16,179.12,2.7914]
[1730230663540,2.7916,179.12,179.08,2.792]
[1730230663732,21.47063469,179.18,179.07,5.56]
[1730230664539,10.27165682,179.17,179.07,5.56]
[1730230664844,2.7914,179.13,179.09,2.7918]
[1730230665547,2.7914,179.13,179.1,2.7918]
[1730230666143,2.7916,179.12,179.09,2.792]
[1730230667447,2.7914,179.13,179.1,2.7918]
[1730230667839,2.7913,179.14,179.09,2.7919]
[1730230668048,1.2354,179.16,179.09,2.7919]
[1730230669251,2.7915,179.13,179.09,2.7919]
[1730230670155,2.7915,179.13,178.44,8.79086988]
[1730230670156,21.47063469,179.12,178.97,21.47063469]
[1730230670453,13.41820301,179.08,178.98,18.97820301]
[1730230670646,13.41820301,179.08,178.99,5.56]
[1730230671041,2.7925,179.06,179.03,2.7928]
[1730230671444,13.41820301,179.08,179.0,5.56]
[1730230671753,17.53551277,179.11,179.05,2.7925]
[1730230672050,17.53551277,179.11,179.0,18.97820301]
[1730230672251,2.7923,179.07,179.04,2.7927]
[1730230672447,17.53551277,179.11,179.0,18.97820301]
[1730230672649,4.11730976,179.11,179.0,5.56]
[1730230674049,2.7924,179.07,179.03,2.7928]
[1730230675057,2.7927,179.05,179.02,2.793]
[1730230675567,21.46449374,179.09,179.0,5.56]
[1730230676061,2.7926,179.06,179.0,5.56]
[1730230676851,2.7926,179.06,179.03,2.7929]
[1730230677756,21.46449374,179.09,179.0,5.56]
[1730230677956,2.7922,179.08,179.05,2.7925]
[1730230678949,2.77460976,179.11,179.0,5.56]
[1730230679153,2.7921,179.09,179.06,2.7924]
[1730230679359,1.2609,179.12,179.01,21.46449374]
[1730230679862,2.7918,179.1,179.01,21.46449374]
[1730230680361,2.7917,179.11,179.08,2.7921]
[1730230680551,1.2609,179.12,179.01,21.46449374]
[1730230680955,2.7918,179.1,179.07,2.7922]
[1730230681359,3.9850926,179.12,179.05,5.56]
[1730230681661,3.9850926,179.12,179.0,5.56]
[1730230681662,21.46449374,179.09,179.0,5.56]
[1730230681855,2.84796873,179.1,179.0,5.56]
[1730230682057,2.7923,179.08,179.05,2.7926]
[1730230682559,22.69079374,179.15,179.02,21.46449374]
[1730230682867,6.7954,179.16,179.05,21.46449374]
[1730230682868,1.2354,179.16,179.05,21.46449374]
[1730230683161,1.3287,179.2,179.07,21.46449374]
[1730230683351,1.3287,179.2,179.1,21.46449374]
[1730230683556,2.7906,179.18,179.1,21.46449374]
[1730230683756,1.3287,179.2,179.1,21.46449374]
[1730230684064,2.7905,179.19,179.13,2.7914]
[1730230684255,2.7905,179.19,179.13,5.56]
[1730230684961,2.7907,179.18,179.14,2.7912]
[1730230685864,1.3287,179.2,179.13,5.56]
[1730230686064,2.7909,179.16,179.13,8.3513]
[1730230686958,2.7909,179.16,179.13,5.56]
[1730230687665,1.3287,179.2,179.13,5.56]
[1730230688062,2.7906,179.19,179.15,2.7909]
[1730230688366,1.3287,179.2,179.15,2.7909]
[1730230688760,1.3287,179.2,179.13,5.56]
[1730230689067,1.3287,179.2,179.11,5.52]
[1730230689562,1.3287,179.2,179.13,2.7912]
[1730230689761,1.3287,179.2,179.1,21.46449374]
[1730230690059,2.7908,179.17,179.13,2.7912]
[1730230690254,2.7908,179.17,179.11,5.52]
[1730230690660,2.7905,179.19,179.16,2.7908]
[1730230690855,2.5798,179.23,179.11,5.52]
[1730230691759,21.46449374,179.22,179.11,5.52]
[1730230692566,2.7907,179.18,179.13,2.7912]
[1730230692863,2.78357908,179.2,179.13,2.7912]
[1730230693072,10.30244816,179.21,179.11,18.93331182]
[1730230693364,13.41331182,179.22,179.14,2.7911]
[1730230693757,10.30244816,179.23,179.14,2.7911]
[1730230693961,0.07034816,179.29,179.2,13.41331182]
[1730230694156,2.76514663,179.28,179.21,5.52]
[1730230694356,13.41331182,179.3,179.21,5.52]
[1730230694562,2.7893,179.27,179.22,2.7898]
[1730230694962,2.7894,179.26,179.22,2.7898]
[1730230695363,2.7894,179.26,179.21,8.31]
[1730230695570,2.7894,179.26,179.21,5.52]
[1730230696369,2.7894,179.26,179.22,2.7899]
[1730230696670,2.78497548,179.3,179.22,13.41331182]
[1730230696866,3.9034,179.31,179.22,13.41331182]
[1730230697258,2.7888,179.3,179.26,2.7893]
[1730230698562,2.7888,179.3,179.21,5.52]
[1730230698563,3.9034,179.31,179.21,5.52]
[1730230698769,2.7895,179.26,179.22,8.3099]
[1730230698970,2.7895,179.26,179.23,5.52]
[1730230699865,13.41331182,179.28,179.23,5.52]
[1730230699866,2.7896,179.24,179.23,5.52]
[1730230700074,3.9034,179.31,179.23,5.52]
[1730230700263,13.41331182,179.3,179.23,5.52]
[1730230700666,13.41331182,179.3,179.22,5.52]
[1730230701381,2.7895,179.25,179.22,8.31]
[1730230701765,2.7895,179.25,179.22,5.52]
[1730230702075,2.7898,179.23,179.22,5.52]
[1730230702569,13.41331182,179.25,179.15,13.41331182]
[1730230702775,13.41331182,179.25,179.18,5.52]
[1730230702971,13.41331182,179.25,179.18,8.3105]
[1730230703169,2.79,179.23,179.18,5.52]
[1730230703467,13.41331182,179.27,179.18,5.52]
[1730230703670,2.7899,179.23,179.19,2.7903]
[1730230705068,3.9034,179.31,179.2,13.41331182]
[1730230705268,3.9034,179.31,179.23,13.41331182]
[1730230705576,3.9034,179.31,179.24,8.3095]
[1730230705765,2.7892,179.27,179.24,8.3095]
[1730230706869,2.7895,179.25,179.24,5.52]
[1730230707073,13.41331182,179.29,179.18,13.41331182]
[1730230707371,13.41331182,179.29,179.19,5.52]
[1730230707761,13.41331182,179.27,179.19,5.52]
[1730230708169,13.41331182,179.27,179.2,2.7903]
[1730230708369,13.41331182,179.27,179.19,5.52]
[1730230708566,13.41331182,179.29,179.19,5.52]
[1730230708770,13.41331182,179.29,179.2,5.52]
[1730230708971,3.9034,179.31,179.21,13.41331182]
[1730230710477,2.7892,179.27,179.24,2.7896]
[1730230711175,2.789,179.29,179.26,2.7893]
[1730230712375,2.5778,179.31,179.25,5.52]
[1730230712773,2.5778,179.31,179.22,13.41331182]
[1730230712964,2.5778,179.31,179.25,2.7895]
[1730230713783,2.5778,179.31,179.22,5.52]
[1730230713784,13.41331182,179.28,179.22,5.52]
[1730230714276,2.7898,179.23,179.22,5.52]
[1730230714881,21.4496964,179.29,179.15,21.4496964]
[1730230715076,21.4496964,179.29,179.16,5.52]
[1730230715077,2.79,179.22,179.16,5.52]
[1730230715577,2.79,179.22,179.2,2.7902]
[1730230715968,1.2633,179.28,179.2,2.7902]
[1730230716169,1.2633,179.28,179.16,5.52]
[1730230716170,1.2633,179.28,179.22,2.7898]
[1730230716376,1.2633,179.28,179.21,5.52]
[1730230716579,2.7897,179.24,179.21,5.52]
[1730230716882,1.2633,179.28,179.21,8.3101]
[1730230717175,2.7893,179.26,179.21,5.52]
[1730230717373,1.2633,179.28,179.21,5.52]
[1730230717776,2.7898,179.24,179.21,8.3101]
[1730230717973,1.2633,179.28,179.21,8.3101]
[1730230718279,1.2633,179.28,179.21,5.52]
[1730230718475,2.7897,179.24,179.21,5.52]
[1730230719580,2.7897,179.24,179.21,8.31]
[1730230719784,2.7893,179.27,179.21,5.52]
[1730230719985,2.5778,179.31,179.21,5.52]
[1730230720184,2.5778,179.31,179.24,2.7896]
[1730230720378,2.7891,179.28,179.24,2.7896]
[1730230721075,2.5778,179.31,179.17,21.4496964]
[1730230721283,21.4496964,179.29,179.18,5.5]
[1730230721681,2.7897,179.24,179.21,2.79]
[1730230722485,2.5778,179.31,179.23,2.7898]
[1730230722486,2.7895,179.26,179.23,2.7898]
[1730230722687,2.5778,179.31,179.23,5.5]
[1730230723778,21.4496964,179.29,179.21,5.5]
[1730230725283,2.79,179.22,179.21,5.5]
[1730230725584,21.4496964,179.29,179.21,5.5]
[1730230725986,2.7899,179.23,179.21,5.5]
[1730230726892,21.4496964,179.29,179.15,21.4496964]
[1730230727092,2.7903,179.2,179.17,2.7906]
[1730230727300,21.4496964,179.27,179.17,2.7906]
[1730230727301,2.73267232,179.24,179.17,8.2906]
[1730230727494,21.4496964,179.27,179.17,5.5]
[1730230727495,2.7905,179.19,179.17,5.5]
[1730230727697,2.85639147,179.22,179.17,5.5]
[1730230727886,21.4496964,179.25,179.15,5.5]
[1730230728190,2.7901,179.22,179.15,5.5]
[1730230728395,1.2921,179.24,179.15,5.5]
[1730230728598,2.4935,179.23,179.15,5.5]
[1730230729094,2.7908,179.17,179.15,5.5]
[1730230729285,2.4935,179.23,179.15,5.5]
[1730230729490,21.4496964,179.22,179.14,5.5]
[1730230729689,2.7908,179.17,179.14,5.5]
[1730230729887,21.4496964,179.22,179.14,5.5]
[1730230731793,21.4496964,179.22,179.14,8.2911]
[1730230732004,21.4496964,179.22,179.14,5.5]
[1730230732389,2.791,179.16,179.14,5.5]
[1730230733794,2.791,179.15,179.14,5.5]
[1730230734691,2.4935,179.23,179.11,2.7916]
[1730230734692,13.41674628,179.19,179.11,2.7916]
[1730230734890,13.41674628,179.17,179.11,5.5]
[1730230735297,2.7915,179.13,179.11,5.5]
[1730230735991,2.7913,179.14,179.11,8.2916]
[1730230740597,2.7908,179.17,179.14,2.7912]
[1730230740805,13.41674628,179.21,179.12,13.41674628]
[1730230740806,2.85068445,179.16,179.12,13.41674628]
[1730230740993,13.41674628,179.21,179.12,13.41674628]
[1730230741405,2.7908,179.17,179.14,2.7912]
[1730230741700,13.41674628,179.21,179.12,13.41674628]
[1730230742692,2.7906,179.19,179.15,2.791]
[1730230743604,2.7903,179.2,179.17,2.7907]
[1730230743807,2.4935,179.23,179.16,5.5]
[1730230744396,2.7901,179.21,179.16,5.5]
[1730230744903,2.4935,179.23,179.16,18.91674628]
[1730230745101,5.2834,179.23,179.16,18.91674628]
[1730230745301,2.4935,179.23,179.16,18.91674628]
[1730230745498,2.79,179.22,179.19,2.7903]
[1730230745694,2.4935,179.23,179.16,18.91674628]
[1730230746504,5.2834,179.23,179.16,18.91674628]
[1730230748309,5.2834,179.23,179.19,2.7903]
[1730230748606,2.79,179.22,179.19,2.7904]
[1730230749008,2.4935,179.23,179.16,5.5]
[1730230749196,2.7905,179.19,179.16,8.2909]
[1730230749400,2.4935,179.23,179.16,5.5]
[1730230749601,2.4935,179.23,179.16,18.91674628]
[1730230749813,5.2834,179.23,179.18,2.7906]
[1730230750009,2.7899,179.23,179.16,18.91674628]
[1730230750218,17.27334628,179.29,179.18,13.41674628]
[1730230750411,2.7897,179.24,179.21,2.7901]
[1730230750715,2.82719503,179.24,179.21,5.5]
[1730230750909,13.41674628,179.24,179.14,13.41674628]
[1730230751112,16.24785013,179.24,179.15,5.5]
[1730230751504,16.24785013,179.24,179.18,2.7905]
[1730230751709,16.24785013,179.24,179.15,5.5]
[1730230752123,2.7901,179.22,179.15,5.5]
[1730230752419,17.27334628,179.29,179.18,13.41674628]
[1730230752616,2.7898,179.23,179.2,2.7902]
[1730230752820,5.59047088,179.23,179.2,8.2902]
[1730230753731,2.80067088,179.23,179.16,13.41674628]
[1730230754022,13.41674628,179.26,179.17,5.5]
[1730230754520,2.7899,179.23,179.2,2.7902]
[1730230755609,13.41674628,179.26,179.2,2.7902]
[1730230755610,2.79,179.22,179.2,2.7902]
[1730230756918,2.79,179.22,179.19,2.7904]
[1730230758126,2.7903,179.2,179.18,2.7905]
[1730230758822,2.7903,179.2,179.17,8.2906]
[1730230759814,16.21267073,179.24,179.17,8.2906]
[1730230759815,2.7902,179.21,179.18,2.7905]
[1730230760017,16.21267073,179.24,179.17,5.5]
[1730230760423,2.7901,179.22,179.19,2.7903]
[1730230760910,2.7899,179.23,179.2,2.7902]
[1730230761112,5.5677088,179.23,179.2,2.7902]
[1730230761322,2.7778088,179.23,179.2,2.7902]
[1730230761517,13.41674628,179.26,179.2,2.7902]
[1730230762227,2.79,179.22,179.2,2.7902]
[1730230762824,2.79,179.22,179.17,5.5]
[1730230763027,2.79,179.22,179.19,2.7903]
[1730230763827,2.73481125,179.23,179.21,2.79]
[1730230764026,2.7897,179.24,179.21,2.79]
[1730230764431,5.55326647,179.24,179.21,2.79]
[1730230765634,2.7898,179.23,179.21,2.79]
[1730230766323,5.56590114,179.23,179.21,2.79]
[1730230768020,2.77610114,179.23,179.17,5.5]
[1730230768336,3.8566,179.29,179.21,2.7901]
[1730230768337,2.7897,179.24,179.21,2.7901]
[1730230769429,13.41674628,179.28,179.18,13.41674628]
[1730230769635,2.7896,179.25,179.22,2.7899]
[1730230771835,2.7896,179.25,179.17,5.5]
[1730230771836,2.79,179.22,179.19,2.7904]
[1730230772037,13.41674628,179.26,179.17,5.5]
[1730230772343,2.7898,179.23,179.2,2.7901]
[1730230772638,2.7556909,179.25,179.21,8.57894312]
[1730230773143,2.7897,179.24,179.22,2.7899]
[1730230776241,8.57894312,179.23,179.19,5.5]
[1730230776444,8.57894312,179.2,179.17,5.5]
[1730230776645,8.57894312,179.22,179.17,8.57894312]
[1730230777447,11.32486306,179.22,179.17,8.57894312]
[1730230778244,2.7903,179.2,179.18,2.7906]
[1730230778647,2.7903,179.2,179.17,8.57894312]
[1730230779038,8.57894312,179.19,179.07,60.32]
[1730230779237,27.8884,179.28,179.08,5.5]
[1730230779238,8.57894312,179.14,179.08,5.5]
[1730230779447,8.57894312,179.12,179.08,5.5]
[1730230779643,2.7917,179.11,179.08,5.5]
[1730230780049,2.7917,179.11,179.08,2.7921]
[1730230780254,2.7919,179.1,179.07,14.07894312]
[1730230780444,13.40923237,179.15,179.07,5.5]
[1730230780956,13.40923237,179.15,178.94,5.5]
[1730230780957,13.40923237,179.08,178.94,5.5]
[1730230781247,13.40923237,179.08,178.96,13.40923237]
[1730230781248,3.699,179.07,178.96,13.40923237]
[1730230781456,3.699,179.07,178.96,18.90923237]
[1730230781457,2.7927,179.05,178.96,18.90923237]
[1730230781749,3.699,179.07,178.98,13.40923237]
[1730230782749,3.699,179.07,179.0,13.40923237]
[1730230782946,16.81,179.15,178.91,13.40923237]
[1730230782947,13.40923237,179.12,179.02,13.40923237]
[1730230783249,2.792,179.1,179.04,2.7927]
[1730230783446,2.792,179.1,178.89,5.59]
[1730230783447,15.93783237,179.12,178.96,5.5]
[1730230783648,13.40923237,179.04,178.87,4.91217388]
[1730230783848,13.40923237,179.02,178.92,13.40923237]
[1730230784047,13.40923237,179.02,178.92,18.90923237]
[1730230784258,2.7934,179.0,178.92,18.90923237]
[1730230784447,13.40923237,179.02,178.92,18.90923237]
[1730230784753,13.40923237,179.02,178.96,2.7939]
[1730230784950,13.40923237,179.02,178.92,18.90923237]
[1730230786352,13.40923237,178.96,178.76,60.34]
[1730230786561,1.3363,178.95,178.86,13.40923237]
[1730230787054,2.77047805,178.94,178.86,13.40923237]
[1730230787357,1.3001,178.94,178.85,5.5]
[1730230787557,2.74363992,178.93,178.85,5.5]
[1730230787758,2.7947,178.92,178.87,2.7953]
[1730230788153,2.7949,178.91,178.86,2.7955]
[1730230788359,13.40923237,178.92,178.85,5.5]
[1730230788556,13.40923237,178.92,178.82,13.40923237]
[1730230788755,2.7951,178.89,178.84,2.7958]
[1730230789055,2.7951,178.89,178.82,18.90923237]
[1730230789056,16.2107877,178.92,178.82,5.5]
[1730230790259,15.96723237,178.94,178.82,5.5]